lending/lending_fUSD_20250501
["ID","MTS","AMOUNT","RATE_DAILY","PERIOD"]
[359504822,1746075038147,-230.74518058,0.0002,2]
[359504824,1746075038156,-211317.88488843,0.0002,2]
[359504989,1746075039780,-117099.11511157,0.0002,2]
[359504991,1746075039789,-155.06887354,0.0002002,2]
[359504993,1746075039798,-155.06887354,0.00020047,2]
[359504995,1746075039808,-155.06887354,0.00020073,2]
[359504996,1746075039819,-155.06887354,0.000201,2]
[359504998,1746075039829,-4792.93180147,0.000202,2]
[359505000,1746075039839,-6550.76068887,0.00020332,2]
[359505003,1746075039849,-503.0,0.00020438,2]
[359505005,1746075039859,-887.28,0.00020575,2]
[359505006,1746075039869,-200.0,0.00020646,2]
[359505009,1746075039879,-23900.0,0.00020682,2]
[359505011,1746075039888,-1000.0,0.00020682,2]
[359505012,1746075039898,-250.0,0.00020682,2]
[359505014,1746075039907,-500.0,0.000207,2]
[359505016,1746075039916,-102996.41451991,0.00020701,2]
[359505018,1746075039926,-1471.21,0.00020714,2]
[359505020,1746075039935,-6550.76068887,0.00020778,2]
[359505023,1746075039944,-4792.93180127,0.00020797,4]
[359505025,1746075039952,-10651.41,0.00020848,2]
[359505026,1746075039962,-20000.0,0.00021,2]
[359505028,1746075039971,-350.0,0.00021,2]
[359505030,1746075039981,-1066.27,0.000212,2]
[359505032,1746075039990,-6550.76068887,0.00021224,2]
[359505034,1746075039999,-300.0,0.0002144,2]
[359505036,1746075040008,-509.0,0.000215,2]
[359505038,1746075040018,-500.0,0.00021533,2]
[359505040,1746075040027,-500.0,0.00021533,2]
[359505042,1746075040036,-1000.0,0.00021644,2]
[359505044,1746075040045,-6550.76068887,0.0002167,2]
[359505046,1746075040057,-4792.93180127,0.00021693,5]
[359505048,1746075040066,-7314.86831856,0.000217,2]
[359505050,1746075040075,-1680.0,0.00021759,2]
[359505052,1746075040085,-329.97504342,0.00021789,2]
[359505053,1746075040243,-5053.54823058,0.000218,2]
[359505054,1746075040304,-250.0,0.00021874,2]
[359505055,1746075040314,-250.0,0.00021874,2]
[359505056,1746075040328,-161.45,0.00021917,2]
[359505057,1746075040337,-513.8227512,0.00021918,2]
[359505058,1746075040347,-151.61,0.00021945,2]
[359505059,1746075040356,-151.61,0.00021972,2]
[359505060,1746075040365,-151.61,0.00022,2]
[359505061,1746075040375,-304.53,0.00022,2]
[359505062,1746075040387,-300.8,0.00022,2]
[359505063,1746075040396,-250.0,0.00022,2]
[359505064,1746075040405,-156.0,0.00022,2]
[359505065,1746075040414,-151.61,0.00022027,2]
[359505066,1746075040424,-151.61,0.00022054,2]
[359505067,1746075040434,-500.0,0.0002206,2]
[359505068,1746075040443,-501.61179285,0.0002206,2]
[359505069,1746075040452,-155.25,0.00022066,2]
[359505070,1746075040462,-486.10777897,0.00022109,2]
[359505071,1746075040471,-6550.76068887,0.00022116,2]
[359505072,1746075040481,-373.44777472,0.0002214,2]
[359505073,1746075040491,-163.01328706,0.0002214,2]
[359505074,1746075040500,-500.0,0.0002224,2]
[359505075,1746075040510,-500.0,0.0002224,2]
[359505076,1746075040520,-500.0,0.0002225,2]
[359505077,1746075040530,-504.94248061,0.0002225,2]
[359505078,1746075040540,-511.2749024,0.0002225,2]
[359505079,1746075040549,-500.68481339,0.0002225,2]
[359505081,1746075040559,-500.0,0.00022257,2]
[359505083,1746075040568,-500.0,0.00022263,2]
[359505085,1746075040577,-500.0,0.000223,2]
[359505087,1746075040586,-501.99090457,0.000223,2]
[359505089,1746075040596,-502.84836243,0.000223,2]
[359505090,1746075040608,-500.0,0.000223,2]
[359505091,1746075040617,-500.0,0.000223,2]
[359505092,1746075040627,-500.0,0.000223,2]
[359505093,1746075040637,-34265.62394593,0.000225,2]
[359505094,1746075040648,-6550.76068887,0.00022562,2]
[359505095,1746075040657,-150.99,0.00022562,2]
[359505096,1746075040666,-450.61,0.00022562,2]
[359505097,1746075040677,-9999.99,0.00022562,2]
[359505098,1746075040686,-150.99,0.00022562,2]
[359505099,1746075040696,-999.99,0.00022562,2]
[359505100,1746075040706,-4792.93180127,0.0002259,7]
[359505101,1746075040715,-500.0,0.000226,2]
[359505102,1746075040725,-500.0,0.00022644,2]
[359505103,1746075040734,-500.0,0.00022644,2]
[359505104,1746075040744,-500.60294482,0.00022644,2]
[359505105,1746075040753,-166.66,0.0002267,2]
[359505106,1746075040762,-505.41869876,0.0002271,2]
[359505107,1746075040771,-300.0,0.0002281,2]
[359505108,1746075040780,-887.28,0.00022839,2]
[359505109,1746075040790,-10000.0,0.00023,2]
[359505110,1746075040799,-1503.31289762,0.00023,2]
[359505111,1746075040808,-400.0,0.00023,2]
[359505112,1746075040818,-6550.76068887,0.00023008,2]
[359505113,1746075040827,-182.17273864,0.00023159,2]
[359505114,1746075040837,-33104.88413377,0.000232,2]
[359505115,1746075040847,-1000.0,0.00023268,2]
[359505116,1746075040858,-500.0,0.00023273,2]
[359505117,1746075040868,-161.45,0.00023287,2]
[359505118,1746075040877,-250.0,0.00023405,2]
[359505119,1746075040887,-166.66,0.00023418,2]
[359505120,1746075040897,-6550.76068887,0.00023454,2]
[359505121,1746075040907,-4792.93180127,0.00023486,9]
[359505122,1746075040917,-200.0,0.000235,2]
[359505123,1746075040927,-159.86,0.00023752,2]
[359505124,1746075040938,-1061.0,0.000238,2]
[359505125,1746075040947,-2351.0,0.0002381,2]
[359505126,1746075040956,-1136.2,0.00023836,2]
[359505127,1746075040967,-6550.76068887,0.000239,2]
[359505128,1746075040977,-155.25,0.00023905,2]
[359505129,1746075040987,-32838.36122397,0.00024,2]
[359505130,1746075040997,-985.65582656,0.00024,2]
[359505131,1746075041008,-6407.92418044,0.00024,14]
[359505132,1746075041020,-4707.0374996,0.00024,2]
[359505133,1746075041030,-166.66,0.00024167,2]
[359505134,1746075041041,-407.3691653,0.0002421,2]
[359505135,1746075041053,-3569.31157824,0.0002421,2]
[359505136,1746075041063,-232.95820651,0.00024215,2]
[359505137,1746075041073,-4792.93180127,0.00024383,11]
[359505138,1746075041083,-150.01986085,0.00024645,2]
[359505139,1746075041093,-161.45,0.00024657,2]
[359505140,1746075041102,-250.0,0.00024658,2]
[359505141,1746075041112,-1000.0,0.00024658,2]
[359505142,1746075041121,-500.0,0.00024685,2]
[359505143,1746075041131,-300.0,0.00024773,2]
[359505144,1746075041141,-323.27492623,0.00024782,10]
[359505145,1746075041151,-1376.0394975,0.00024783,2]
[359505146,1746075041161,-217651.8153228,0.00024783,2]
[359505147,1746075041171,-21211.34596533,0.00024783,2]
[359505148,1746075041183,-959.15910299,0.00024783,2]
[359505149,1746075041198,-3455.01873803,0.00024783,2]
[359505151,1746075042853,-139944.75447595,0.00024783,2]
[359505152,1746075042863,-13484.9550718,0.00024783,2]
[359505153,1746075042873,-16089.8507567,0.00024783,2]
[359505154,1746075042883,-8225.6259984,0.00024783,2]
[359505155,1746075042893,-20906.3455205,0.00024783,2]
[359505156,1746075042902,-468.78473509,0.0002479,2]
[359505157,1746075042912,-464.8996168,0.00024799,2]
[359505158,1746075042921,-500.0,0.00024799,2]
[359505159,1746075042931,-151.0,0.000248,7]
[359505160,1746075042941,-158.139124,0.000248,7]
[359505161,1746075042951,-151.0,0.000248,7]
[359505162,1746075042960,-153.614169,0.000248,7]
[359505163,1746075042970,-154.279935,0.000248,7]
[359505164,1746075042979,-360.487664,0.000248,7]
[359505165,1746075042989,-360.487664,0.000248,7]
[359505166,1746075042999,-151.0,0.000248,7]
[359505167,1746075043008,-151.0,0.000248,7]
[359505168,1746075043018,-151.0,0.000248,7]
[359505169,1746075043028,-151.0,0.000248,7]
[359505170,1746075043038,-151.0,0.000248,7]
[359505171,1746075043047,-1184.188202,0.000248,7]
[359505172,1746075043057,-1320.617178,0.000248,7]
[359505174,1746075043067,-263.071309,0.000248,7]
[359505176,1746075043077,-263.071309,0.000248,7]
[359505177,1746075043086,-525.59217,0.000248,7]
[359505178,1746075043096,-151.0,0.000248,7]
[359505179,1746075043105,-525.59217,0.000248,7]
[359505180,1746075043115,-151.0,0.000248,7]
[359505181,1746075043125,-370.20947,0.000248,7]
[359505182,1746075043135,-370.20947,0.000248,7]
[359505183,1746075043145,-153.954617,0.000248,7]
[359505184,1746075043155,-151.0,0.000248,5]
[359505185,1746075043164,-218868.71612938,0.000248,3]
[359505189,1746075045494,-840.137525,0.000248,3]
[359505190,1746075045866,-385048.85701862,0.000248,3]
[359505191,1746075045875,-151.0,0.000248,7]
[359505192,1746075045885,-12315.5852364,0.00024883,2]
[359505193,1746075045894,-6296.1055164,0.00024883,2]
[359505194,1746075045904,-16002.2541,0.00024883,2]
[359505195,1746075045914,-151.0,0.00024883,7]
[359505196,1746075045923,-151.0,0.00024883,7]
[359505198,1746075045932,-151.0,0.00024883,7]
[359505200,1746075045941,-151.0,0.00024883,7]
[359505202,1746075045950,-151.0,0.00024883,7]
[359505204,1746075045959,-184.996743,0.00024883,7]
[359505206,1746075045969,-184.996743,0.00024883,7]
[359505208,1746075045978,-151.0,0.00024883,7]
[359505210,1746075045988,-151.0,0.00024883,7]
[359505212,1746075045997,-244.685043,0.00024883,7]
[359505214,1746075046007,-244.685043,0.00024883,7]
[359505216,1746075046016,-160.904159,0.00024883,7]
[359505218,1746075046025,-151.0,0.00024883,7]
[359505220,1746075046035,-151.0,0.00024883,7]
[359505222,1746075046044,-151.348788,0.00024883,7]
[359505224,1746075046053,-151.0,0.00024883,7]
[359505225,1746075046063,-151.0,0.00024883,7]
[359505227,1746075046072,-182.380855,0.00024883,7]
[359505229,1746075046082,-151.0,0.00024883,7]
[359505232,1746075046092,-151.0,0.00024883,7]
[359505234,1746075046102,-151.0,0.00024883,7]
[359505235,1746075046111,-2998.576951,0.00024883,7]
[359505237,1746075046120,-2998.576951,0.00024883,7]
[359505239,1746075046129,-151.0,0.00024883,7]
[359505242,1746075046139,-151.0,0.00024883,7]
[359505243,1746075046149,-151.0,0.00024883,7]
[359505245,1746075046158,-151.0,0.00024883,7]
[359505247,1746075046167,-151.0,0.00024883,7]
[359505249,1746075046176,-151.0,0.00024883,7]
[359505251,1746075046185,-228.586107,0.00024883,7]
[359505253,1746075046194,-500.0,0.0002489,2]
[359505255,1746075046203,-151.0,0.0002489,7]
[359505257,1746075046212,-231.824858,0.0002489,7]
[359505259,1746075046222,-231.824858,0.0002489,7]
[359505261,1746075046231,-151.0,0.00024891,7]
[359505263,1746075046241,-154.949215,0.00024891,7]
[359505265,1746075046250,-151.0,0.00024891,7]
[359505267,1746075046260,-151.0,0.00024891,7]
[359505270,1746075046270,-151.0,0.00024891,7]
[359505271,1746075046279,-151.0,0.00024891,7]
[359505272,1746075046288,-195.182194,0.00024891,7]
[359505273,1746075046298,-195.182194,0.00024891,7]
[359505274,1746075046307,-156.881173,0.00024891,7]
[359505275,1746075046316,-151.0,0.00024891,7]
[359505276,1746075046326,-349.895202,0.00024891,7]
[359505277,1746075046335,-349.895202,0.00024891,7]
[359505278,1746075046344,-156.782565,0.00024891,7]
[359505279,1746075046353,-156.782565,0.00024891,7]
[359505280,1746075046362,-210.699932,0.00024891,7]
[359505281,1746075046371,-210.699932,0.00024891,7]
[359505282,1746075046380,-614.516326,0.00024891,7]
[359505284,1746075046390,-614.516326,0.00024891,7]
[359505286,1746075046399,-259.331376,0.00024891,7]
[359505288,1746075046408,-415.844051,0.00024891,7]
[359505290,1746075046417,-415.844051,0.00024891,7]
[359505291,1746075046426,-500.0,0.00024894,2]
[359505294,1746075046436,-500.0,0.00024899,2]
[359505297,1746075046445,-151.0,0.000249,7]
[359505298,1746075046454,-151.34181,0.000249,7]
[359505300,1746075046464,-176.065358,0.000249,7]
[359505302,1746075046473,-151.0,0.000249,7]
[359505304,1746075046482,-295.073806,0.000249,7]
[359505307,1746075046492,-295.073806,0.000249,7]
[359505308,1746075046501,-151.0,0.000249,7]
[359505310,1746075046510,-151.0,0.000249,7]
[359505313,1746075046522,-151.0,0.000249,7]
[359505314,1746075046532,-151.0,0.000249,7]
[359505316,1746075046542,-151.0,0.000249,7]
[359505318,1746075046552,-151.0,0.000249,7]
[359505321,1746075046561,-151.0,0.000249,7]
[359505323,1746075046571,-324871.83429611,0.000249,3]
[359505396,1746075073882,156.67,0.00019178,2]
[359505399,1746075338633,1005.67304677,0.0003,30]
[359505400,1746075555549,4254.0,0.0003,30]
[359505403,1746075610427,150.0,0.00032867,60]
[359505404,1746075628652,2005.0,0.000301,120]
[359505405,1746075709492,801.46,0.00018764,2]
[359505408,1746075934787,695.0,0.00032876,60]
[359505450,1746076231659,-1044.58820623,0.00020681,2]
[359505451,1746076231670,-155.41179377,0.00020681,2]
[359505452,1746076231679,-194.93,0.00020682,2]
[359505453,1746076231689,-226.7985207,0.00020682,2]
[359505454,1746076231714,-508.8014793,0.00020682,2]
[359505455,1746076231724,-200.0,0.00020682,2]
[359505456,1746076231733,-2145.2668326,0.00020682,2]
[359505524,1746076237769,-4344.17990257,0.00020682,2]
[359505527,1746076240051,-920.74219302,0.00020682,2]
[359505582,1746076267099,150.0,0.000301,120]
[359505588,1746076391763,243.69738561,0.00032877,60]
[359505589,1746076446834,156.67,0.00019178,2]
[359505590,1746076527286,2000.0,0.000301,120]
[359505591,1746076558964,250.0,0.00017,2]
[359505592,1746076560268,300.0,0.00019,2]
[359505593,1746076809985,150.0,0.000193,2]
[359505594,1746077029696,600.0,0.00032,120]
[359505596,1746077211062,150.0,0.00032867,60]
[359505660,1746077431788,-216.64,0.00019562,2]
[359505661,1746077431798,-250.0,0.00019598,2]
[359505662,1746077431809,-805.75,0.00019633,2]
[359505663,1746077431818,-200.0,0.00019675,2]
[359505664,1746077431828,-250.0,0.00019676,2]
[359505665,1746077431837,-200.0,0.00019791,2]
[359505666,1746077431846,-175.58625166,0.000199,2]
[359505667,1746077431856,-1187.95399507,0.000199,2]
[359505668,1746077431867,-8403.07958694,0.000199,2]
[359505669,1746077431878,-454.88837975,0.000199,2]
[359505670,1746077431891,-2655.40026375,0.000199,2]
[359505671,1746077432071,-2237.5817208,0.000199,2]
[359506172,1746077437815,-44017.94225352,0.000199,2]
[359506173,1746077437825,-1777.17186152,0.000199,2]
[359506174,1746077437835,-157.73745098,0.000199,3]
[359506175,1746077437844,-500.0,0.00019973,2]
[359506176,1746077437853,-500.0,0.00019973,2]
[359506177,1746077437862,-511.93284645,0.00019973,2]
[359506178,1746077437872,-39570.31088758,0.0001998,2]
[359506179,1746077437881,-312.52315673,0.0001999,2]
[359506180,1746077437890,-312.52315673,0.0001999,2]
[359506181,1746077437899,-312.52315673,0.0001999,2]
[359506182,1746077437908,-500.0,0.00019999,2]
[359506183,1746077437917,-21232.89136028,0.00019999,2]
[359506184,1746077437925,-4217613.67638096,0.0002,2]
[359506230,1746077440156,-2140367.62293121,0.0002,2]
[359506231,1746077440166,-36887.30487628,0.0002,2]
[359506232,1746077440175,-3055230.54978194,0.0002,2]
[359506505,1746077446207,-542.46,0.0002,2]
[359506584,1746077447923,158.26,0.00019178,2]
[359506585,1746077481328,700.0,0.00032876,120]
[359506586,1746077481563,700.0,0.00032876,120]
[359506587,1746077481803,700.0,0.00032876,120]
[359506588,1746077482039,700.0,0.00032876,120]
[359506589,1746077482272,700.0,0.00032876,120]
[359506590,1746077482506,700.0,0.00032876,120]
[359506591,1746077482737,700.0,0.00032876,120]
[359506592,1746077482963,700.0,0.00032876,120]
[359506593,1746077483198,700.0,0.00032876,120]
[359506594,1746077483438,823.19119919,0.00032876,120]
[359506596,1746078003454,200.0,0.00019247,2]
[359506597,1746078023435,23900.0,0.00019133,2]
[359506598,1746078033083,637.01552094,0.00032876,60]
[359506599,1746078093095,904.36,0.00017128,2]
[359506600,1746078129080,200.0,0.00019021,2]
[359506601,1746078200213,-904.36,0.00019392,2]
[359506602,1746078200235,-166.66,0.00019759,2]
[359506603,1746078200257,-200.0,0.00019793,2]
[359506604,1746078200280,-155.45,0.00019828,2]
[359506605,1746078200308,-250.0,0.00019833,2]
[359506606,1746078200330,-200.0,0.00019833,2]
[359506607,1746078200352,-155.45,0.00019837,2]
[359506608,1746078200373,-155.45,0.00019847,2]
[359506609,1746078200394,-155.45,0.00019857,2]
[359506610,1746078200416,-155.45,0.00019867,2]
[359506611,1746078200439,-155.45,0.00019877,2]
[359506612,1746078200460,-155.45,0.00019887,2]
[359506613,1746078200481,-1103.41,0.00019889,2]
[359506614,1746078200502,-1000.0,0.00019889,2]
[359506615,1746078200523,-155.45,0.00019897,2]
[359506616,1746078200547,-1200.0,0.00019898,2]
[359506617,1746078200569,-300.0,0.00019898,2]
[359506618,1746078200592,-1706.965,0.00019899,2]
[359506619,1746078200615,-277.43803015,0.00019899,2]
[359506620,1746078200638,-26920.58388946,0.000199,2]
[359506621,1746078200660,-177.39555671,0.000199,2]
[359506622,1746078200685,-309.94531634,0.000199,2]
[359506623,1746078200707,-175.58625166,0.000199,2]
[359506624,1746078200730,-372.16529657,0.000199,2]
[359506625,1746078200752,-159.40114631,0.000199,2]
[359506626,1746078200776,-155.45,0.00019907,2]
[359506627,1746078200799,-155.45,0.00019917,2]
[359506628,1746078200820,-666.0,0.0001992,2]
[359506629,1746078200841,-155.45,0.00019927,2]
[359506630,1746078200862,-346.53838418,0.00019973,2]
[359506631,1746078200883,-500.0,0.00019973,2]
[359506632,1746078200904,-312.52315673,0.0001999,2]
[359506633,1746078200927,-312.52315673,0.0001999,2]
[359506634,1746078200948,-10651.41,0.00019991,2]
[359506635,1746078200970,-21232.89136028,0.00019999,2]
[359506636,1746078200992,-1081704.25345488,0.0002,2]
[359506637,1746078302677,-1184.781241,0.00019933,2]
[359506638,1746078302699,-250.0,0.00019967,2]
[359506639,1746078302720,-200.0,0.00019967,2]
[359506640,1746078302742,-1200.0,0.00019999,2]
[359506641,1746078302765,-1150025.218759,0.0002,2]
[359506642,1746078340501,-175.58625166,0.000199,2]
[359506643,1746078340523,-1152684.41374834,0.0002,2]
[359506644,1746078374956,-22152.7328375,0.00019986,2]
[359506645,1746078374980,-1060965.01481042,0.0002,2]
[359506646,1746078375001,-25863.54514019,0.0002,2]
[359506647,1746078375023,-12048.70721189,0.0002,2]
[359506648,1746078379659,250.0,0.00017,2]
[359506649,1746078380725,300.0,0.00019,2]
[359506663,1746078492562,158.26,0.00019178,2]
[359507107,1746078631990,-250.0,0.00019688,2]
[359507108,1746078632000,-244.40241062,0.00019879,2]
[359507109,1746078632103,-55.59758938,0.00019879,2]
[359507110,1746078632113,-1200.0,0.00019879,2]
[359507111,1746078632123,-16756.7337085,0.0001988,2]
[359507180,1746078638029,-476.33,0.0001988,2]
[359507181,1746078638193,-11723.10036687,0.0001988,2]
[359507182,1746078638203,-334.94876685,0.00019926,2]
[359507183,1746078638213,-406.32957185,0.00019973,2]
[359507184,1746078638222,-337.59715316,0.00019973,2]
[359507185,1746078638232,-316368.29278811,0.0002,2]
[359507186,1746078638241,-159.0,0.0002,2]
[359507188,1746078638251,-265.74835313,0.0002,2]
[359507189,1746078638260,-104096.68591027,0.00020026,2]
[359507191,1746078638269,-344.27675877,0.00020073,2]
[359507193,1746078638278,-500.0,0.00020073,2]
[359507195,1746078638288,-500.0,0.00020073,2]
[359507198,1746078638297,-211.24478406,0.00020073,2]
[359507200,1746078638307,-500.0,0.00020073,2]
[359507202,1746078638316,-500.0,0.00020073,2]
[359507204,1746078638325,-500.0,0.00020073,2]
[359507205,1746078638335,-500.59002653,0.00020073,2]
[359507207,1746078638344,-500.0,0.00020073,2]
[359507210,1746078638353,-187.20036533,0.00020073,2]
[359507211,1746078638363,-505.45280058,0.00020073,2]
[359507213,1746078638372,-500.48107556,0.00020073,2]
[359507215,1746078638382,-500.43332278,0.00020073,2]
[359507217,1746078638392,-500.0,0.00020073,2]
[359507218,1746078638401,-200.0,0.000201,2]
[359507220,1746078638410,-200.0,0.0002031,2]
[359507222,1746078638419,-220.0,0.00020329,2]
[359507224,1746078638429,-209.95,0.00020478,2]
[359507226,1746078638438,-5000.0,0.000205,2]
[359507229,1746078638447,-200.0,0.0002051,2]
[359507231,1746078638457,-200.0,0.0002061,2]
[359507233,1746078638470,-216.64,0.00020649,2]
[359507235,1746078638479,-500.0,0.00020673,2]
[359507237,1746078638489,-373.44777472,0.00020673,2]
[359507239,1746078638499,-500.0,0.00020673,2]
[359507241,1746078638509,-163.01328706,0.00020673,2]
[359507243,1746078638519,-53065.4554063,0.00020674,2]
[359507245,1746078638529,-12255.8765064,0.00020674,2]
[359507247,1746078638539,-2341.4037538,0.00020674,2]
[359507249,1746078638549,-6325.230475,0.00020674,2]
[359507251,1746078638558,-168056.8052758,0.00020674,2]
[359507253,1746078638568,-229.3399162,0.00020674,2]
[359507255,1746078638577,-199.55341215,0.00020681,2]
[359507258,1746078638597,-194.93,0.00020688,2]
[359507260,1746078638608,-194.93,0.00020693,2]
[359507262,1746078638619,-194.93,0.00020699,2]
[359507264,1746078638629,-194.93,0.00020704,2]
[359507266,1746078638639,-194.93,0.00020709,2]
[359507268,1746078638649,-200.0,0.0002071,2]
[359507270,1746078638658,-194.93,0.00020715,2]
[359507272,1746078638668,-194.93,0.0002072,2]
[359507274,1746078638678,-194.93,0.00020726,2]
[359507276,1746078638687,-194.93,0.00020731,2]
[359507278,1746078638696,-194.93,0.00020737,2]
[359507280,1746078638706,-194.93,0.00020742,2]
[359507282,1746078638716,-194.93,0.00020748,2]
[359507284,1746078638727,-194.93,0.00020753,2]
[359507286,1746078638736,-194.93,0.00020759,2]
[359507288,1746078638746,-194.93,0.00020764,2]
[359507290,1746078638756,-194.93,0.00020769,2]
[359507292,1746078638766,-194.93,0.00020775,2]
[359507294,1746078638776,-194.93,0.0002078,2]
[359507296,1746078638786,-194.93,0.00020786,2]
[359507298,1746078638795,-5797.01180379,0.000209,4]
[359507299,1746078638805,-200.0,0.0002091,2]
[359507300,1746078638815,-219.79,0.00021,2]
[359507301,1746078638825,-5000.0,0.00021,2]
[359507302,1746078638834,-20000.0,0.00021,2]
[359507303,1746078638843,-350.0,0.00021,2]
[359507304,1746078638853,-1169.41,0.000212,2]
[359507305,1746078638863,-166.67,0.00021303,2]
[359507306,1746078638872,-250.0,0.00021331,2]
[359507307,1746078638882,-95036.17844208,0.0002135,2]
[359507308,1746078638892,-5122.4,0.0002137,2]
[359507309,1746078638901,-500.60294482,0.00021373,2]
[359507310,1746078638911,-500.0,0.00021373,2]
[359507311,1746078638921,-500.0,0.00021373,2]
[359507312,1746078638931,-500.0,0.00021373,2]
[359507313,1746078638941,-300.0,0.00021373,2]
[359507314,1746078638951,-166.66,0.00021389,2]
[359507316,1746078638960,-300.0,0.00021496,2]
[359507317,1746078638970,-1000.0,0.00021644,2]
[359507318,1746078638980,-420.0,0.00021649,2]
[359507319,1746078638990,-904.36,0.00021656,2]
[359507320,1746078638999,-200.0,0.00021657,2]
[359507321,1746078639009,-7314.86831856,0.000217,2]
[359507322,1746078639019,-216.64,0.00021736,2]
[359507323,1746078639029,-1680.0,0.00021753,2]
[359507324,1746078639039,-9999.99,0.00021757,2]
[359507325,1746078639048,-175.1,0.00021757,2]
[359507326,1746078639058,-3194.74,0.00021757,2]
[359507327,1746078639068,-999.99,0.00021757,2]
[359507328,1746078639077,-499.99,0.00021757,2]
[359507329,1746078639087,-694.02,0.00021757,2]
[359507330,1746078639097,-9999.99,0.00021757,2]
[359507331,1746078639106,-1010.78,0.00021757,2]
[359507332,1746078639116,-150.99,0.00021757,2]
[359507333,1746078639126,-591.0,0.0002176,2]
[359507334,1746078639135,-5797.0118037,0.00021762,5]
[359507335,1746078639145,-5053.54823058,0.000218,2]
[359507336,1746078639155,-200.0,0.0002189,2]
[359507337,1746078639164,-181.17,0.00021917,2]
[359507338,1746078639174,-513.8227512,0.00021918,2]
[359507339,1746078639184,-200.68964993,0.00021921,2]
[359507340,1746078639194,-250.0,0.00021926,2]
[359507341,1746078639205,-1078.65763341,0.00022,14]
[359507342,1746078639215,-250.0,0.00022,2]
[359507343,1746078639224,-200.0,0.00022,2]
[359507344,1746078639235,-500.0,0.000222,2]
[359507345,1746078639244,-500.0,0.000222,2]
[359507346,1746078639255,-501.61179285,0.000222,2]
[359507347,1746078639266,-500.0,0.000222,2]
[359507348,1746078639276,-500.0,0.00022208,2]
[359507349,1746078639287,-500.0,0.00022208,2]
[359507350,1746078639296,-500.0,0.00022208,2]
[359507351,1746078639306,-270.89897558,0.00022208,2]
[359507352,1746078639315,-160.45172935,0.00022227,2]
[359507353,1746078639326,-501.41990566,0.00022227,2]
[359507354,1746078639336,-500.0,0.00022227,2]
[359507355,1746078639346,-162.68185268,0.00022227,2]
[359507356,1746078639356,-315.56371199,0.00022227,2]
[359507357,1746078639366,-500.0,0.00022227,2]
[359507358,1746078639375,-330.87895996,0.00022227,2]
[359507359,1746078639385,-500.0,0.0002226,2]
[359507360,1746078639394,-500.0,0.0002227,2]
[359507362,1746078639404,-334.94876684,0.0002229,2]
[359507363,1746078639414,-1000.0,0.00022375,2]
[359507364,1746078639423,-534.6710845,0.00022499,2]
[359507365,1746078639433,-500.0,0.00022499,2]
[359507366,1746078639443,-2900.0,0.000225,15]
[359507367,1746078639452,-34265.62394593,0.000225,2]
[359507368,1746078639463,-5797.0118037,0.00022624,7]
[359507369,1746078639474,-304.21,0.00022682,2]
[359507370,1746078639484,-301.86,0.00022682,2]
[359507371,1746078639493,-304.35,0.00022682,2]
[359507372,1746078639503,-304.63,0.00022682,2]
[359507373,1746078639513,-304.96,0.00022682,2]
[359507374,1746078639522,-301.76,0.00022682,2]
[359507375,1746078639532,-302.86,0.00022682,2]